Cogmind - Beta 17 @@@ ROGUE MODE // 2026.07.31 @ 20:50:42 Player: 50l Result: Destroyed by P-60 Hacker with Shock Rifle Performance ------------- Evolutions (0) 0 Regions Visited (3) 600 Robots Destroyed (32) 160 Value Destroyed (762) 762 Prototype IDs (16) 320 Alien Tech Used (0) 0 Bonus (7) 7 TOTAL SCORE: 1849 Bonus ------- Follower Combat Kills 7 Cogmind --------- Core Integrity 0/250 Matter 300/300 Energy 99/100 System Corruption 1% Temperature Cool (0) Movement Core (150) Ox2 Location -9/Recycling Parts ------- > --- POWER (1) -------- (None) > --- PROPULSION (2) --- Flight Unit Flight Unit > --- UTILITY (2) ------ Small Storage Unit > --- WEAPON (2) ------- Mining Claw > --- INVENTORY (8) ---- Flight Unit Flight Unit Humpback Rainbow Chip Subdweller Beam Cannon Subdweller Beam Cannon Grenade Launcher Peak State ------------ > --- POWER ------------ (None) > --- PROPULSION ------- Light Treads Subdweller Monowheel > --- UTILITY ---------- Large Storage Unit Makeshift Light Armor Plating > --- WEAPON ----------- Subdweller Machine Gun Heavy Battle Rifle > --- INVENTORY -------- Light Ion Engine Subdweller Monowheel Flight Unit Flight Unit Flight Unit Flight Unit Disposable Heat Sink Small Storage Unit Humpback Subdweller Laser Subdweller Beam Cannon Subdweller Beam Cannon Grenade Launcher Mining Claw [Rating: 16] Favorites ----------- Power Light Ion Engine Engine Light Ion Engine Propulsion Light Treads Treads Light Treads Wheel Subdweller Monowheel Flight Unit Flight Unit Utility Small Storage Unit Storage Small Storage Unit Protection Medium Armor Plating Weapon Beam Rifle Energy Gun Beam Rifle Energy Cannon Subdweller Beam Cannon Ballistic Gun Assault Rifle Launcher Grenade Launcher Slashing Weapon Mining Claw Build | -11 -10 -10 -9 ------- Run | Yrd Mat Sub Rec Slots Evolved . | . . . . Power . | . . . . Propulsion . | . . . . Utility . | . . . . Weapon . | . . . . Parts Attached 22 | 5 5 12 . Power 1 | . . 1 . Engine 1 | . . 1 . Core . | . . . . Reactor . | . . . . Propulsion 6 | 2 . 4 . Treads 2 | 2 . . . Leg . | . . . . Wheel 2 | . . 2 . Hover . | . . . . Flight 2 | . . 2 . Utility 4 | 1 1 2 . Device . | . . . . Storage 2 | 1 . 1 . Processor . | . . . . Hackware . | . . . . Protection 2 | . 1 1 . Artifact . | . . . . Weapon 11 | 2 4 5 . Energy Gun 3 | 1 1 1 . Energy Cannon 2 | . . 2 . Ballistic Gun 4 | 1 1 2 . Ballistic Cannon . | . . . . Launcher 1 | . 1 . . Special Weapon . | . . . . Impact Weapon . | . . . . Slashing Weapon 1 | . 1 . . Piercing Weapon . | . . . . Special Melee Weapon . | . . . . Unidentified Prototypes . | . . . . Parts Lost 7 | . . 7 . Power . | . . . . Propulsion 3 | . . 3 . Utility 1 | . . 1 . Weapon 3 | . . 3 . Highest Loss Streak 2 | . . 2 . To Critical Strikes . | . . . . Average Backups 8 | 2 7 9 7 Power 1 | 1 1 . . Propulsion 3 | . 3 4 2 Utility 1 | . . 1 2 Weapon 2 | . 1 2 3 Tool/Special . | . . . . Unused Backups 7 | . 2 1 4 Power 1 | . 1 . . Propulsion 3 | . 1 . 2 Utility 3 | . . 1 2 Weapon . | . . . . Tool/Special . | . . . . Average Slot Usage (%) 79 | . 83 79 57 Treads 22 | . 28 19 . Wheel 2 | . . 3 . Flight 2 | . . 2 28 Storage 14 | . 14 14 14 Protection 11 | . 12 11 . Energy Gun 10 | . 14 9 . Energy Cannon 1 | . . 2 . Ballistic Gun 10 | . 12 10 . Slashing Weapon 3 | . . 3 14 Peak Build Rating 16 | 5 8 16 6 Average Rating 8 | 3 7 10 6 On Entrance 4 | . 5 8 6 Avg Prop Armor Cover (%) 11 | . . 11 20 Naked Turns . | . . . . Heaviest Build 43 | 7 17 43 7 Greatest Support 40 | 40 40 40 8 Greatest Overweight (x) 2 | . . 2 2 Average Overweight (x) . | . . . . Largest Inventory Capacity 15 | 8 8 15 8 Average Capacity 9 | 6 8 11 8 Most Carried 15 | 4 8 15 8 Average Carried 9 | 2 7 10 8 Final Capacity 8 | 8 8 8 8 Final Carried 8 | 4 8 8 8 Class Distribution -------------------- 100% | Mutant Dominant Class ---------------- Mutant | -10/Materials Mutant | -10/Subcaves Mutant | -9/Recycling Resources | -11 -10 -10 -9 ----------- Run | Yrd Mat Sub Rec Matter Collected 792 | 205 323 264 . Remotely . | . . . . Salvage Created 926 | . 461 406 59 Parts 61 | . 37 22 2 Haulers Intercepted 1 | . 1 . . Recyclers Shooed . | . . . . Parts Field Recycled . | . . . . Retrieved Matter . | . . . . Parts Self-Destructed 10 | . . 10 . Prevented . | . . . . Parts Restored . | . . . . Kills | -11 -10 -10 -9 ------- Run | Yrd Mat Sub Rec Combat Hostiles Destroyed 24 | . 14 9 1 Melee 1 | . . . 1 Guns 12 | . 5 7 . Cannons 1 | . . 1 . AOE 9 | . 9 . . Classes Destroyed 9 | . 7 1 1 Worker 2 | . 2 . . Hauler 1 | . 1 . . Recycler 1 | . 1 . . Operator 1 | . 1 . . Watcher 3 | . 3 . . Swarmer 9 | . 9 . . Grunt 5 | . 5 . . Sentry 1 | . . . 1 Subdweller 9 | . . 9 . Best Kill Streak 6 | . 6 2 1 Combat Bots Only 5 | . 5 2 1 Max Kills in Single Turn 2 | . 2 1 1 Gunslinging . | . . . . Exploded 2 | . 2 . . Melee 1 | . . . 1 Uniques/NPCs Destroyed . | . . . . Combat | -11 -10 -10 -9 -------- Run | Yrd Mat Sub Rec Hostile Shots Fired 127 | . 39 75 13 Missed 33 | . 13 19 1 Hits 94 | . 26 56 12 Projectile 94 | . 26 56 12 Critical Strikes 1 | . . 1 . Damage Taken 1559 | . 265 1162 132 Core 252 | . 33 162 57 Absorbed by Shields . | . . . . Core Remaining (%) 100 | 100 . . . Volleys Fired 77 | . 39 38 . Largest 2 | . 2 2 . Hottest 160 | . 76 160 . Shots Fired 138 | . 69 69 . Gun 113 | . 62 51 . Cannon 18 | . . 18 . Launcher 7 | . 7 . . Special . | . . . . Kinetic 70 | . 32 38 . Thermal 61 | . 30 31 . Explosive 7 | . 7 . . Electromagnetic . | . . . . Robot Hit Streak 21 | . 10 21 . Robot Miss Streak 2 | . 2 1 . Penetration Max . | . . . . Secondary Targets 1 | . 1 . . Max Gunslinging Chain 1 | . 1 . . Shots Hit Robots 88 | . 44 43 1 Core Hits 44 | . 30 13 1 Critical Kills 2 | . . 2 . Critical Parts Destroyed 1 | . . 1 . Critical Strikes 4 | . . 4 . Meltdown 1 | . . 1 . Destroy 3 | . . 3 . Melee Attacks 17 | . 3 13 1 Impact . | . . . . Slashing 17 | . 3 13 1 Piercing . | . . . . Sneak Attacks 1 | . . . 1 Combat Hostiles . | . . . . Follow-up Attacks . | . . . . Damage Inflicted 2197 | . 1300 841 56 Guns 1350 | . 620 730 . Cannons 111 | . . 111 . Explosions 680 | . 680 . . Melee 56 | . . . 56 Ramming . | . . . . Kinetic 879 | . 251 628 . Thermal 582 | . 369 213 . Explosive 680 | . 680 . . Electromagnetic . | . . . . Impact . | . . . . Slashing 56 | . . . 56 Piercing . | . . . . Highest Corruption 1 | . . 1 1 Average Corruption 1 | . . 1 1 Corruption Purged . | . . . . Corruption Blocked . | . . . . Effects 8 | . . 6 2 Message Errors 1 | . . 1 . Matter Fused 2 | . . 2 . Heat Flow Errors 1 | . . 1 . Energy Discharges 2 | . . . 2 Data Loss (minor) 1 | . . 1 . Weapon Failures 1 | . . 1 . Overload Shots . | . . . . Overflow Damage . | . . . . Projectiles . | . . . . Explosions . | . . . . Melee . | . . . . Knockbacks . | . . . . Impact . | . . . . Kinetic . | . . . . Secondary . | . . . . Self-Inflicted Damage . | . . . . Shots . | . . . . Rammed . | . . . . Targets Rammed . | . . . . Kicked . | . . . . Crushed . | . . . . Highest Temperature 343 | . 81 343 . Average Temperature 45 | . 17 87 . Received Heat Transfer 640 | . 81 550 9 Effects 1 | . . 1 . Short Circuit 1 | . . 1 . Siege Activations . | . . . . Martial Activations . | . . . . Shielding Activations . | . . . . Robots Disrupted . | . . . . Combat Hostiles . | . . . . Robots Corrupted . | . . . . Combat Hostiles . | . . . . Parts Fried . | . . . . Impact Corruptions . | . . . . Robots Melted 1 | . . 1 . Combat Hostiles 1 | . . 1 . Parts Melted 4 | . . 4 . Heat Transferred 1284 | . 877 407 . Parts Sabotaged . | . . . . Parts Stolen . | . . . . Parts Stripped . | . . . . Power Chain Reactions . | . . . . Alert | -11 -10 -10 -9 ------- Run | Yrd Mat Sub Rec Maximum Alert Level . | . . . . Low Security (%) 100 | 100 100 . 100 Level 1 . | . . . . Level 2 . | . . . . Level 3 . | . . . . Level 4 . | . . . . Level 5 . | . . . . High Security . | . . . . Max Security . | . . . . Peak Influence 169 | . 169 . 56 Initial 4 | . . . 4 Average 46 | . 49 . 37 Influence Increases 737 | . 489 105 143 Destroy 0b10 Robot/C 320 | . 280 . 40 Destroy 0b10 Robot/NC 40 | . 40 . . Destroy Leader 68 | . 68 . . Allied During Kill 1 | . . . 1 Successful Hack 36 | . 24 . 12 Select Force Hacks 90 | . . . 90 Disable Machine 15 | . 15 . . Destroy Structure 47 | . 47 . . Lose Combat Pursuer 120 | . 15 105 . Influence Decreases 690 | . 358 227 105 Entered New Map 68 | . . 63 5 Time Decay 572 | . 358 134 80 Lost Part 30 | . . 30 . Lost Ally 20 | . . . 20 Squads Dispatched 2 | . 2 . . Investigation . | . . . . Extermination . | . . . . Reinforcement 2 | . 2 . . Assault . | . . . . Garrison . | . . . . Intercept . | . . . . Searches Triggered . | . . . . Construction Impeded . | . . . . Haulers Reinforced . | . . . . Active Scanning Responses . | . . . . Cargo Convoy Interrupts . | . . . . Stealth | -11 -10 -10 -9 --------- Run | Yrd Mat Sub Rec Distress Signals 2 | . 2 . . Communications Jammed . | . . . . Distress Signals . | . . . . Times Spotted 50 | . 27 19 4 Peak Tracking Total 5 | . 5 4 4 Tactical Retreats 4 | . 1 3 . Traps | -11 -10 -10 -9 ------- Run | Yrd Mat Sub Rec Traps Triggered . | . . . . Indirectly . | . . . . Trap Hack Attempts . | . . . . Triggered . | . . . . Disarmed . | . . . . Reprogrammed . | . . . . Reused . | . . . . Traps Extracted . | . . . . Installed . | . . . . Triggered . | . . . . Machines | -11 -10 -10 -9 ---------- Run | Yrd Mat Sub Rec Machines Disabled 2 | . 1 1 . Max in Single Turn 1 | . 1 1 . Machines Repaired . | . . . . Machines Dismantled . | . . . . Machines Sabotaged . | . . . . Overloaded Fab Kills . | . . . . Hacking | -11 -10 -10 -9 --------- Run | Yrd Mat Sub Rec Machines Accessed 18 | . 7 2 9 Terminals 13 | . 7 . 6 Fabricators . | . . . . Repair Stations . | . . . . Recycling Units 3 | . . . 3 Scanalyzers . | . . . . Garrison Access . | . . . . Total Hacks 46 | . 23 5 18 Successful 31 | . 15 5 11 Failed 15 | . 8 . 7 Catastrophic 2 | . 1 . 1 Database Lockouts . | . . . . Manual 39 | . 21 . 18 Terminals 38 | . 23 . 15 Fabricators . | . . . . Repair Stations . | . . . . Recycling Units 3 | . . . 3 Scanalyzers . | . . . . Garrison Access . | . . . . Terminal Hacks 13 | . 7 5 1 Record 4 | . . 4 . Robot Analysis 7 | . 6 . 1 Prototype ID Bank 1 | . 1 . . Proto ID Catalog 1 | . . 1 . Fabricator Hacks . | . . . . Repair Station Hacks . | . . . . Recycling Unit Hacks . | . . . . Scanalyzer . | . . . . Garrison Access Hacks . | . . . . Unauthorized Hacks 18 | . 8 . 10 Terminals 15 | . 8 . 7 Assimilate 1 | . 1 . . Botnet 6 | . 2 . 4 Skim 8 | . 5 . 3 Fabricators . | . . . . Repair Stations . | . . . . Recycling Units 3 | . . . 3 Tunnel 3 | . . . 3 Scanalyzers . | . . . . Garrison Access . | . . . . Data Cores Recovered . | . . . . Used . | . . . . Hacking Detections 13 | . 7 . 6 Full Trace Events 1 | . 1 . . Feedback Events . | . . . . Feedback Blocked . | . . . . Robot Schematics Acquired . | . . . . Robots Built . | . . . . Authchips . | . . . . Time . | . . . . Total Robot Build Rating . | . . . . Part Schematics Acquired . | . . . . Parts Built . | . . . . Authchips . | . . . . Time . | . . . . Total Part Build Rating . | . . . . Part Studies Acquired . | . . . . Parts Repaired . | . . . . Time . | . . . . Parts Recycled . | . . . . Recycled Matter . | . . . . Retrieved Matter . | . . . . Retrieved Components . | . . . . Parts Scanalyzed . | . . . . Part Schematics Acquired . | . . . . Parts Damaged . | . . . . Bothacking | -11 -10 -10 -9 ------------ Run | Yrd Mat Sub Rec Used RIF Installer . | . . . . Robots Hacked . | . . . . Non-combat . | . . . . Combat . | . . . . Robot Hacks Applied . | . . . . Relay Couplers Released . | . . . . Fabnet Peak Effective % . | . . . . Robots Rewired 1 | . . . 1 Allies Hacked . | . . . . Hacks Repelled . | . . . . Allies | -11 -10 -10 -9 -------- Run | Yrd Mat Sub Rec Total Allies 2 | . 1 . 1 Largest Group 1 | . 1 . . Highest-Rated Group 10 | . 10 . . Highest-Rated Ally 10 | . 10 . . Total Orders . | . . . . Ally Attacks 1 | . . . 1 Total Damage 33 | . . . 33 Kills 1 | . . . 1 Allies Corrupted . | . . . . Allies Melted . | . . . . Intel | -11 -10 -10 -9 ------- Run | Yrd Mat Sub Rec Active Infowar (turns) . | . . . . Robot Analysis Total 7 | . 6 . 1 Derelict Logs Recovered 2 | . . 2 . Drone Launches . | . . . . Drone Recoveries . | . . . . Exploration | -11 -10 -10 -9 ------------- Run | Yrd Mat Sub Rec Turns Passed 4145 | 66 1560 2355 164 Spaces Moved 3025 | 40 828 1743 414 Core 13 | 8 . . 5 Treads 1725 | 32 828 865 . Legs . | . . . . Wheels 409 | . . 409 . Hover . | . . . . Flight 878 | . . 469 409 Fastest Speed 37 | 50 160 37 37 Average Speed 118 | 138 160 118 38 Slowest Speed 160 | 160 160 160 150 Overloaded Moves . | . . . . Propulsion Burnouts . | . . . . Robots Hopped 2 | . . . 2 Potential Cave-ins . | . . . . Cave-ins Triggered 1 | . . 1 . Exploration Rate (%) 66 | 4 96 91 76 Regions Visited 3 Branch Regions 2 Pre-discovered Areas 5 | . . 2 3 Known Exits Taken 1 | . . 1 . Unknown Exits Taken 2 | 1 1 . . Scrap Searched 2 | . . 2 . Spaces Dug 6 | . 3 3 . Terrain Destroyed 49 | . 46 3 . Melee 6 | . 3 3 . Projectile . | . . . . AOE 43 | . 43 . . Terrain Rammed . | . . . . Walls Destroyed . | . . . . Machines Disabled . | . . . . Actions | -11 -10 -10 -9 --------- Run | Yrd Mat Sub Rec Total 3392 | 48 986 1942 416 Wait 204 | . 94 110 . Move 3018 | 39 827 1742 410 Hop 2 | . . . 2 Pick Up 21 | 4 7 10 . Fast Attach 9 | 5 1 3 . Attach 8 | . . 8 . Detach 3 | . . 3 . Swap 17 | . 11 6 . Drop 13 | . 4 9 . Fire 77 | . 39 38 . Melee 17 | . 3 13 1 Ram . | . . . . Kick . | . . . . Crush . | . . . . Escape Stasis . | . . . . Rewire 3 | . . . 3 Trap . | . . . . Miscellaneous . | . . . . Route ------- -11/Scrapyard -10/Materials (discovered 6 exits: *Mat x3 / [*Min x2] / *Sub) -10/Subcaves (discovered 3 exits: *Mat x2 / *Rec) -9/Recycling History --------- Turn | Location | Event 6 | -11/Scrapyard | Discovered new exit (range 16) 67 | -11/Scrapyard | Entered Materials 270 | -10/Materials | Discovered new exit (range 14) 312 | -10/Materials | Build established: Mutant 634 | -10/Materials | Discovered new exit (range 16) 784 | -10/Materials | Discovered new exit (range 9) 902 | -10/Materials | Discovered new exit (range 11) 1032 | -10/Materials | Learned location of 2 exits from Mines 1054 | -10/Materials | Discovered new exit (range 10) 1105 | -10/Materials | Learned Storage trap positions 1169 | -10/Materials | Learned 2 Storage zone layouts 1221 | -10/Materials | Identified exit to Materials 1263 | -10/Materials | Learned location of 2 exits from Subcaves 1295 | -10/Materials | Learned Storage security intel 1627 | -10/Materials | Entered Subcaves 1628 | -10/Subcaves | Identified exit to Materials 1629 | -10/Subcaves | Identified exit to Recycling 2056 | -10/Subcaves | Visited Clippyterm 2061 | -10/Subcaves | Learned location of Extension (-5) 2597 | -10/Subcaves | Shifting Twisted Machinery released Hvy. Battle Rifle 2598 | -10/Subcaves | Shifting Twisted Machinery released Sub. Monowheel 2887 | -10/Subcaves | Learned Materials emergency access door positions 2926 | -10/Subcaves | Crushed by falling debris 3083 | -10/Subcaves | Shifting Twisted Machinery released Shrapnel Trap 3160 | -10/Subcaves | Core integrity fell below 50% 3929 | -10/Subcaves | Visited 4L-MR0's lab 3935 | -10/Subcaves | Found Rainbow Chip 3982 | -10/Subcaves | Entered Recycling 4093 | -9/Recycling | Core integrity fell below 20% 4146 | -9/Recycling | Destroyed by P-60 Hacker with Shock Rifle Last Messages --------------- mix of thermal and kinetic weaponry. The Y-45 guards important locations and vital machinery, and remains at its station unless they identify a hostile robot or are alerted to the presence of one nearby. 04134_ Sneak attack on Y-45 Defender. 04134_ Y-45 Defender destroyed. 04137_ R-06 Scavenger collects Lgt. Treads. 04137_ S-10 Pest springs to life. 04138_ P-60 Hacker springs to life. 04138_ Attempting to rewire L-31 Rogue. 04140_ R-06 Scavenger collects Hvy. Assault Rifle. 04141_ Attempting to rewire L-31 Rogue. 04142_ L-31 Rogue rewired. 04143_ S-10 Pest destroyed. 04143_ Rogue 2a destroyed. 04143_ R-06 Scavenger collects Imp. Aluminum Leg. 04146_ R-06 Scavenger collects Core Shielding. Map ----- +----------------------------------------------------+ | # #?????????????????????????????????? | | + #??????????????????????????????????? | | # #??????????????????????????????????? | | ##### #??????????????????????????????????? | | ????# #??????????????????????????????????? | | ????# #??????????????????????????????????? | | ????# #??????????????????????????????????? | | ????# #??????????????????????????????????? | | ????# #??????????????????????????????????? | | ????# #??????????????????????????????????? | | ????# #??????????????????????????????????? | | ????###########??????????????????????????????????? | | ?????????????????????????????????????????????????? | | ###???##########?????????????????????????????????? | | !!##### #?????????????????????????????????? | | # # "" #?????????????????????????????????? | | # # Y" #?????????????????????????????????? | | # # "" #?????????????????????????????????? | | !# # #?????????????????????????????????? | | # # """ #?????????????????????????????????? | | + + """ #?????????????????????????????????? | | !# # """ #?#####+####??????????????????????? | | # # #?#!Y k b g#??????????????????????? | | !!# ##########?# tk ! !#??????????????????????? | | # %%#????????# a #??????????????????????? | | !!# %#????????# r @#??????????????????????? | | ! # %%#????????#d s] %#??????????????????????? | | ### ###????????#ug d% % #??????????????????????? | | ??# #??????????#= s p r*#??????????????????????? | | #?# #??????????# r !#??????????????????????? | | #?# #??????????# t h#??????????????????????? | | #?# ###############+#####??????????????????????? | | #?# #??????????????????????? | | #?# #??????????????????????? | | #?# ##########?????????????? | | #?#########+########### # ?????????????? | | #??## #???????# # """ ?????????????? | | #??# #???????# # """ #????????????? | | #??## #???##### # """ #????????????? | | #???# #???#! !# # " """ #????????????? | | #???# ##### !# + T """ #????????????? | | #???# + # " #????????????? | | #???# ###### + #????????????? | | #???# #????# ###########????????????? | | #???######## ##????# #??????????????????????? | | #??????????###??########+########????????????????? | | ????????????????# #????????????????? | | ????????????????# ! #????????????????? | | ????????????????# #????????????????? | | ????????????????# [ #????????????????? | +----------------------------------------------------+ Best States ------------- Heat Dissipation 25 Energy Generation 10 Energy Capacity 125 Matter Stores 300 Matter Capacity 300 Sight Range 16 Terrain Scan Density 10 Armor Coverage 225 Evasion (%) 62 Recoil Reduction 2 Item Schematics ----------------- None Robot Schematics ------------------ None Fabricated ------------ Nothing Repaired ---------- Nothing Studied --------- None Alien Tech Used ----------------- None Achievements -------------- None Challenges ------------ None Game ------ Seed AerolevTargetingSuit Manual? 0 Play Time 00:30:18 Cumulative 371.0 hours Start 2026.07.31 @ 20:20:23 End 2026.07.31 @ 20:50:42 Sessions 1 Manual Loads 0 Difficulty Rogue Special Mode None Game No. 218 Rogue 144 Adventurer 74 Explorer 0 Win Type - Total 18 Types 15/0/0/3/0/0/0/0/0/0 Lore% 75 Gallery% 68 Achievement% 54 Wizard Run 0 Options --------- Layout 2 ASCII 0 Keyboard 0 Movement Mouse Keybinds 0 Fullscreen 1 Font 32/SmallcapsGlow Map View 50x44 Zoom Use 0% Tactical HUD 1 Map Filters NONE Filters NONE Steam 1 RUN: aef5cd12-d404-4321-a3c1-f7e9dc3daf22